[Event "December 19 Late 2023"]
[Site "https://www.chess.com"]
[Date "2023.12.19"]
[Round "2"]
[White "Levine, David"]
[Black "Spichkin, Alexander"]
[Result "0-1"]
[Board "182"]
[TimeControl "180+1"]
[WhiteFideId "2011611"]
[BlackFideId "4144074"]
[WhiteElo "2049"]
[BlackElo "1955"]
[WhiteTeam "USA"]
[BlackTeam "RUS"]
[WhiteClock "0:00:00"]
[BlackClock "0:02:03"]

1. d4 {[%clk 0:03:00]}  e6 {[%clk 0:02:59]} 2. c4 {[%clk 0:02:59]}  f5 {[%clk 0:02:59]} 3. g3 {[%clk 0:02:57]}  Nf6 {[%clk 0:02:59]} 4. Bg2 {[%clk 0:02:58]}  Be7 {[%clk 0:03:00]} 5. Nf3 {[%clk 0:02:58]}  O-O {[%clk 0:03:00]} 6. O-O {[%clk 0:02:57]}  d6 {[%clk 0:03:01]} 7. Nc3 {[%clk 0:02:53]}  a5 {[%clk 0:03:01]} 8. Re1 {[%clk 0:02:51]}  Ne4 {[%clk 0:03:01]} 9. Nxe4 {[%clk 0:02:47]}  fxe4 {[%clk 0:03:01]} 10. Nd2 {[%clk 0:02:46]}  d5 {[%clk 0:03:01]} 11. f3 {[%clk 0:02:46]}  c5 {[%clk 0:03:02]} 12. fxe4 {[%clk 0:02:39]}  cxd4 {[%clk 0:03:02]} 13. cxd5 {[%clk 0:02:37]}  e5 {[%clk 0:03:03]} 14. Nf3 {[%clk 0:02:35]}  Bd6 {[%clk 0:03:00]} 15. e3 {[%clk 0:02:30]}  Bg4 {[%clk 0:03:01]} 16. Rf1 {[%clk 0:02:23]}  Nd7 {[%clk 0:02:53]} 17. exd4 {[%clk 0:02:20]}  exd4 {[%clk 0:02:52]} 18. Kh1 {[%clk 0:02:20]}  Bxf3 {[%clk 0:02:50]} 19. Bxf3 {[%clk 0:02:19]}  Be5 {[%clk 0:02:50]} 20. Bg4 {[%clk 0:01:56]}  Nc5 {[%clk 0:02:50]} 21. Bf3 {[%clk 0:01:39]}  Qb6 {[%clk 0:02:40]} 22. Bd2 {[%clk 0:01:36]}  Qxb2 {[%clk 0:02:38]} 23. Rc1 {[%clk 0:01:26]}  b6 {[%clk 0:02:36]} 24. a4 {[%clk 0:01:16]}  Qa3 {[%clk 0:02:28]} 25. Rc4 {[%clk 0:01:12]}  Qd3 {[%clk 0:02:21]} 26. Rxc5 {[%clk 0:00:43]}  bxc5 {[%clk 0:02:21]} 27. Kg2 {[%clk 0:00:39]}  c4 {[%clk 0:02:19]} 28. Qe1 {[%clk 0:00:32]}  Qc3 {[%clk 0:02:18]} 29. Bxc3 {[%clk 0:00:31]}  dxc3 {[%clk 0:02:19]} 30. Be2 {[%clk 0:00:27]}  Rxf1 {[%clk 0:02:12]} 31. Bxf1 {[%clk 0:00:24]}  c2 {[%clk 0:02:13]} 32. Qd2 {[%clk 0:00:18]}  c3 {[%clk 0:02:11]} 33. Qxc2 {[%clk 0:00:17]}  Rb8 {[%clk 0:02:12]} 34. Be2 {[%clk 0:00:03]}  Rb2 {[%clk 0:02:12]} 35. Qd3 {[%clk 0:00:03]}  c2 {[%clk 0:02:12]} 36. Qc4 {[%clk 0:00:03]}  Bd6 {[%clk 0:02:03]} 37. Qc8+ {[%clk 0:00:02]}  Kf7 {[%clk 0:02:03]} 38. Qd7+ {[%clk 0:00:00]}  Be7 {[%clk 0:02:03]} 0-1

[Event "December 19 Late 2023"]
[Site "https://www.chess.com"]
[Date "2023.12.19"]
[Round "2"]
[White "Mizzi, Jack"]
[Black "Stead, Kerry"]
[Result "1-0"]
[Board "183"]
[TimeControl "180+1"]
[WhiteFideId "5602521"]
[BlackFideId "3202577"]
[WhiteElo "2127"]
[BlackElo "1997"]
[WhiteTeam "MLT"]
[BlackTeam "AUS"]
[WhiteClock "0:02:15"]
[BlackClock "0:01:32"]

1. d4 {[%clk 0:03:00]}  c5 {[%clk 0:02:58]} 2. d5 {[%clk 0:03:00]}  f5 {[%clk 0:02:57]} 3. c4 {[%clk 0:02:59]}  g6 {[%clk 0:02:56]} 4. g3 {[%clk 0:02:59]}  Bg7 {[%clk 0:02:56]} 5. Bg2 {[%clk 0:02:58]}  d6 {[%clk 0:02:56]} 6. Nf3 {[%clk 0:02:58]}  Nd7 {[%clk 0:02:54]} 7. O-O {[%clk 0:02:58]}  Nb6 {[%clk 0:02:51]} 8. Nc3 {[%clk 0:02:56]}  Bxc3 {[%clk 0:02:49]} 9. bxc3 {[%clk 0:02:55]}  Nxc4 {[%clk 0:02:45]} 10. Qa4+ {[%clk 0:02:53]}  Bd7 {[%clk 0:02:43]} 11. Qxc4 {[%clk 0:02:53]}  Nf6 {[%clk 0:02:42]} 12. Ng5 {[%clk 0:02:52]}  b5 {[%clk 0:02:37]} 13. Qd3 {[%clk 0:02:50]}  Qa5 {[%clk 0:02:35]} 14. Ne6 {[%clk 0:02:48]}  Bxe6 {[%clk 0:02:34]} 15. dxe6 {[%clk 0:02:49]}  Rc8 {[%clk 0:02:35]} 16. a4 {[%clk 0:02:48]}  c4 {[%clk 0:02:33]} 17. Qb1 {[%clk 0:02:43]}  bxa4 {[%clk 0:02:32]} 18. Qb7 {[%clk 0:02:41]}  Qc7 {[%clk 0:02:26]} 19. Qb5+ {[%clk 0:02:36]}  Kf8 {[%clk 0:02:24]} 20. Rxa4 {[%clk 0:02:34]}  Kg7 {[%clk 0:02:22]} 21. Bg5 {[%clk 0:02:29]}  Rhd8 {[%clk 0:02:16]} 22. Ra6 {[%clk 0:02:19]}  Rb8 {[%clk 0:02:07]} 23. Qa4 {[%clk 0:02:18]}  Rb3 {[%clk 0:01:32]} 24. Rxa7 {[%clk 0:02:15]} 1-0

[Event "December 19 Late 2023"]
[Site "https://www.chess.com"]
[Date "2023.12.19"]
[Round "2"]
[White "Phillips, Rene"]
[Black "Buchenau, Frank"]
[Result "1-0"]
[Board "185"]
[TimeControl "180+1"]
[WhiteFideId "2056275"]
[BlackFideId "4604350"]
[WhiteElo "2030"]
[BlackElo "2157"]
[WhiteTeam "USA"]
[BlackTeam "GER"]
[WhiteClock "0:02:45"]
[BlackClock "0:00:00"]

1. Nf3 {[%clk 0:03:00]}  Nf6 {[%clk 0:02:56]} 2. b3 {[%clk 0:02:59]}  g6 {[%clk 0:02:54]} 3. Bb2 {[%clk 0:02:59]}  Bg7 {[%clk 0:02:54]} 4. e3 {[%clk 0:03:00]}  O-O {[%clk 0:02:55]} 5. Be2 {[%clk 0:03:01]}  c5 {[%clk 0:02:54]} 6. O-O {[%clk 0:03:01]}  Nc6 {[%clk 0:02:54]} 7. c4 {[%clk 0:03:01]}  b6 {[%clk 0:02:47]} 8. d4 {[%clk 0:03:01]}  cxd4 {[%clk 0:02:46]} 9. Nxd4 {[%clk 0:03:02]}  Bb7 {[%clk 0:02:43]} 10. Bf3 {[%clk 0:02:59]}  Rc8 {[%clk 0:02:38]} 11. Nc3 {[%clk 0:02:56]}  Qc7 {[%clk 0:02:34]} 12. Ndb5 {[%clk 0:02:53]}  Qb8 {[%clk 0:02:34]} 13. Nd5 {[%clk 0:02:50]}  Nxd5 {[%clk 0:02:28]} 14. Bxg7 {[%clk 0:02:49]}  Nxe3 {[%clk 0:00:00]} 15. fxe3 {[%clk 0:02:45]} 1-0

[Event "December 19 Late 2023"]
[Site "https://www.chess.com"]
[Date "2023.12.19"]
[Round "2"]
[White "Gurevich, Dmitry"]
[Black "Reinecke, Katharina"]
[Result "1-0"]
[Board "187"]
[TimeControl "180+1"]
[WhiteFideId "2000407"]
[BlackFideId "12929727"]
[WhiteElo "2506"]
[BlackElo "1761"]
[WhiteTeam "USA"]
[BlackTeam "GER"]
[WhiteClock "0:00:03"]
[BlackClock "0:00:00"]

1. d4 {[%clk 0:03:00]}  d5 {[%clk 0:02:59]} 2. c4 {[%clk 0:03:00]}  c6 {[%clk 0:02:58]} 3. e3 {[%clk 0:02:59]}  Nf6 {[%clk 0:02:57]} 4. Nc3 {[%clk 0:02:58]}  e6 {[%clk 0:02:57]} 5. Nf3 {[%clk 0:02:58]}  Be7 {[%clk 0:02:54]} 6. Bd3 {[%clk 0:02:56]}  O-O {[%clk 0:02:54]} 7. O-O {[%clk 0:02:54]}  dxc4 {[%clk 0:02:54]} 8. Bxc4 {[%clk 0:02:54]}  b5 {[%clk 0:02:54]} 9. Bd3 {[%clk 0:02:52]}  a6 {[%clk 0:02:53]} 10. Qe2 {[%clk 0:02:44]}  c5 {[%clk 0:02:50]} 11. a4 {[%clk 0:02:42]}  b4 {[%clk 0:02:42]} 12. Ne4 {[%clk 0:02:41]}  cxd4 {[%clk 0:02:23]} 13. exd4 {[%clk 0:02:31]}  Bb7 {[%clk 0:02:20]} 14. Bf4 {[%clk 0:02:23]}  Nxe4 {[%clk 0:02:02]} 15. Bxe4 {[%clk 0:02:22]}  Bxe4 {[%clk 0:01:58]} 16. Qxe4 {[%clk 0:02:21]}  Nd7 {[%clk 0:01:56]} 17. Ne5 {[%clk 0:02:12]}  Nf6 {[%clk 0:01:48]} 18. Qf3 {[%clk 0:01:57]}  Rc8 {[%clk 0:01:39]} 19. Rac1 {[%clk 0:01:47]}  Qb6 {[%clk 0:01:12]} 20. Nc6 {[%clk 0:01:33]}  Nd5 {[%clk 0:01:00]} 21. a5 {[%clk 0:01:30]}  Qb5 {[%clk 0:00:48]} 22. Qxd5 {[%clk 0:01:11]}  exd5 {[%clk 0:00:41]} 23. Nxe7+ {[%clk 0:01:11]}  Kh8 {[%clk 0:00:41]} 24. Nxc8 {[%clk 0:01:10]}  Qxa5 {[%clk 0:00:35]} 25. Bd6 {[%clk 0:01:03]}  Rd8 {[%clk 0:00:29]} 26. Na7 {[%clk 0:00:54]}  Qa2 {[%clk 0:00:19]} 27. Bxb4 {[%clk 0:00:45]}  Qxb2 {[%clk 0:00:19]} 28. Bc5 {[%clk 0:00:45]}  h6 {[%clk 0:00:17]} 29. h4 {[%clk 0:00:40]}  a5 {[%clk 0:00:17]} 30. Ra1 {[%clk 0:00:38]}  Qc3 {[%clk 0:00:16]} 31. Rfc1 {[%clk 0:00:36]}  Qd2 {[%clk 0:00:16]} 32. Rcb1 {[%clk 0:00:34]}  Re8 {[%clk 0:00:16]} 33. Nc6 {[%clk 0:00:29]}  Re2 {[%clk 0:00:15]} 34. Rf1 {[%clk 0:00:27]}  Qc3 {[%clk 0:00:12]} 35. Rxa5 {[%clk 0:00:25]}  Qd2 {[%clk 0:00:10]} 36. Ra8+ {[%clk 0:00:21]}  Kh7 {[%clk 0:00:10]} 37. Ne5 {[%clk 0:00:20]}  Qf4 {[%clk 0:00:09]} 38. Nf3 {[%clk 0:00:15]}  Rb2 {[%clk 0:00:07]} 39. Ra7 {[%clk 0:00:14]}  f6 {[%clk 0:00:07]} 40. Re1 {[%clk 0:00:08]}  Rc2 {[%clk 0:00:06]} 41. Rae7 {[%clk 0:00:04]}  Rc1 {[%clk 0:00:06]} 42. Re3 {[%clk 0:00:03]}  Rxe1+ {[%clk 0:00:05]} 43. Rxe1 {[%clk 0:00:03]}  Qf5 {[%clk 0:00:05]} 44. Re3 {[%clk 0:00:03]}  Qd7 {[%clk 0:00:05]} 45. g3 {[%clk 0:00:03]}  Qf7 {[%clk 0:00:05]} 46. Kg2 {[%clk 0:00:03]}  h5 {[%clk 0:00:06]} 47. Re7 {[%clk 0:00:01]}  Qg6 {[%clk 0:00:06]} 48. Nd2 {[%clk 0:00:01]}  Kh6 {[%clk 0:00:05]} 49. Nf1 {[%clk 0:00:01]}  Qf5 {[%clk 0:00:05]} 50. Ne3 {[%clk 0:00:01]}  Qd3 {[%clk 0:00:05]} 51. Re6 {[%clk 0:00:01]}  Qb1 {[%clk 0:00:04]} 52. Rd6 {[%clk 0:00:01]}  Qe4+ {[%clk 0:00:04]} 53. Kh2 {[%clk 0:00:01]}  Qf3 {[%clk 0:00:04]} 54. Kg1 {[%clk 0:00:01]}  Qe2 {[%clk 0:00:04]} 55. Re6 {[%clk 0:00:01]}  Qe1+ {[%clk 0:00:04]} 56. Kg2 {[%clk 0:00:02]}  Qd2 {[%clk 0:00:04]} 57. Re8 {[%clk 0:00:02]}  Qc3 {[%clk 0:00:03]} 58. Re7 {[%clk 0:00:03]}  Qd2 {[%clk 0:00:04]} 59. Rd7 {[%clk 0:00:03]}  Qc3 {[%clk 0:00:04]} 60. Bf8 {[%clk 0:00:03]}  Kg6 {[%clk 0:00:03]} 61. Bxg7 {[%clk 0:00:03]}  Qd2 {[%clk 0:00:00]} 62. Bf8 {[%clk 0:00:03]} 1-0

[Event "December 19 Late 2023"]
[Site "https://www.chess.com"]
[Date "2023.12.19"]
[Round "2"]
[White "UnTucopalaTimba"]
[Black "Dwilewicz, Katarzyna"]
[Result "0-1"]
[Board "189"]
[TimeControl "180+1"]
[BlackFideId "1148486"]
[WhiteElo "1956"]
[BlackElo "2098"]
[BlackTeam "POL"]
[WhiteClock "0:00:00"]
[BlackClock "0:00:13"]

1. e4 {[%clk 0:02:57]}  c5 {[%clk 0:03:00]} 2. Nf3 {[%clk 0:02:56]}  a6 {[%clk 0:03:00]} 3. d4 {[%clk 0:02:54]}  cxd4 {[%clk 0:03:00]} 4. Nxd4 {[%clk 0:02:54]}  Nf6 {[%clk 0:03:00]} 5. e5 {[%clk 0:02:50]}  Qa5+ {[%clk 0:02:58]} 6. Nc3 {[%clk 0:02:44]}  Qxe5+ {[%clk 0:02:59]} 7. Nde2 {[%clk 0:02:40]}  Nc6 {[%clk 0:02:53]} 8. Be3 {[%clk 0:02:38]}  d5 {[%clk 0:02:51]} 9. Qd2 {[%clk 0:02:23]}  Bf5 {[%clk 0:02:31]} 10. a3 {[%clk 0:02:20]}  g6 {[%clk 0:02:27]} 11. h3 {[%clk 0:02:13]}  Bg7 {[%clk 0:02:27]} 12. g4 {[%clk 0:02:12]}  Ne4 {[%clk 0:02:18]} 13. Qxd5 {[%clk 0:01:50]}  Nxc3 {[%clk 0:02:03]} 14. Nxc3 {[%clk 0:01:42]}  Bxc2 {[%clk 0:01:57]} 15. Bg2 {[%clk 0:01:25]}  O-O {[%clk 0:01:55]} 16. O-O {[%clk 0:01:18]}  Rfd8 {[%clk 0:01:52]} 17. Qxe5 {[%clk 0:01:14]}  Bxe5 {[%clk 0:01:47]} 18. Rac1 {[%clk 0:01:09]}  Bd3 {[%clk 0:01:47]} 19. Rfd1 {[%clk 0:01:07]}  Rac8 {[%clk 0:01:47]} 20. Nd5 {[%clk 0:01:00]}  Be2 {[%clk 0:01:37]} 21. Re1 {[%clk 0:00:52]}  Bb5 {[%clk 0:01:26]} 22. b3 {[%clk 0:00:43]}  e6 {[%clk 0:00:51]} 23. Nb6 {[%clk 0:00:41]}  Rc7 {[%clk 0:00:51]} 24. a4 {[%clk 0:00:39]}  Bd3 {[%clk 0:00:51]} 25. Nc4 {[%clk 0:00:37]}  Bxc4 {[%clk 0:00:49]} 26. Bb6 {[%clk 0:00:31]}  Bxb3 {[%clk 0:00:35]} 27. Bxc7 {[%clk 0:00:31]}  Bxc7 {[%clk 0:00:35]} 28. Bxc6 {[%clk 0:00:28]}  bxc6 {[%clk 0:00:36]} 29. Rxc6 {[%clk 0:00:27]}  Bf4 {[%clk 0:00:23]} 30. Ra1 {[%clk 0:00:17]}  a5 {[%clk 0:00:22]} 31. Ra6 {[%clk 0:00:15]}  Rd5 {[%clk 0:00:19]} 32. Ra8+ {[%clk 0:00:14]}  Kg7 {[%clk 0:00:19]} 33. Kg2 {[%clk 0:00:14]}  Bd2 {[%clk 0:00:18]} 34. Kg3 {[%clk 0:00:12]}  g5 {[%clk 0:00:17]} 35. Ra6 {[%clk 0:00:12]}  Bf4+ {[%clk 0:00:16]} 36. Kg2 {[%clk 0:00:11]}  Be5 {[%clk 0:00:14]} 37. Rc6 {[%clk 0:00:00]}  Bxa1 {[%clk 0:00:13]} 0-1

[Event "December 19 Late 2023"]
[Site "https://www.chess.com"]
[Date "2023.12.19"]
[Round "2"]
[White "ajian"]
[Black "Vargas, Mauricio"]
[Result "1-0"]
[Board "191"]
[TimeControl "180+1"]
[BlackFideId "4404572"]
[WhiteElo "2398"]
[BlackElo "1982"]
[BlackTeam "COL"]
[WhiteClock "0:00:54"]
[BlackClock "0:01:31"]

1. Nf3 {[%clk 0:02:59]}  Nc6 {[%clk 0:02:59]} 2. d4 {[%clk 0:02:56]}  d6 {[%clk 0:02:58]} 3. c4 {[%clk 0:02:55]}  g6 {[%clk 0:02:58]} 4. Nc3 {[%clk 0:02:54]}  Bg7 {[%clk 0:02:58]} 5. e4 {[%clk 0:02:51]}  Nf6 {[%clk 0:02:58]} 6. Be2 {[%clk 0:02:50]}  O-O {[%clk 0:02:56]} 7. d5 {[%clk 0:02:50]}  Ne5 {[%clk 0:02:49]} 8. Nxe5 {[%clk 0:02:50]}  dxe5 {[%clk 0:02:49]} 9. Be3 {[%clk 0:02:51]}  e6 {[%clk 0:02:46]} 10. O-O {[%clk 0:02:49]}  exd5 {[%clk 0:02:45]} 11. cxd5 {[%clk 0:02:49]}  a6 {[%clk 0:02:24]} 12. Rc1 {[%clk 0:02:47]}  Qe7 {[%clk 0:02:23]} 13. Qb3 {[%clk 0:02:28]}  b6 {[%clk 0:02:07]} 14. f3 {[%clk 0:02:22]}  Bb7 {[%clk 0:02:07]} 15. Rfd1 {[%clk 0:02:12]}  Rac8 {[%clk 0:02:06]} 16. d6 {[%clk 0:01:58]}  cxd6 {[%clk 0:02:02]} 17. Qxb6 {[%clk 0:01:57]}  d5 {[%clk 0:01:57]} 18. Nxd5 {[%clk 0:01:37]}  Nxd5 {[%clk 0:01:57]} 19. exd5 {[%clk 0:01:36]}  Rcd8 {[%clk 0:01:53]} 20. Bc5 {[%clk 0:01:20]}  Qg5 {[%clk 0:01:43]} 21. Qxb7 {[%clk 0:01:10]}  Rb8 {[%clk 0:01:40]} 22. Qe7 {[%clk 0:00:59]}  Rxb2 {[%clk 0:01:38]} 23. Qxg5 {[%clk 0:00:57]}  Rxe2 {[%clk 0:01:34]} 24. Bxf8 {[%clk 0:00:56]}  Bxf8 {[%clk 0:01:31]} 25. d6 {[%clk 0:00:54]} 1-0

[Event "December 19 Late 2023"]
[Site "https://www.chess.com"]
[Date "2023.12.19"]
[Round "3"]
[White "Seemann, Jakub"]
[Black "Lazavik, Denis"]
[Result "1/2-1/2"]
[Board "2"]
[TimeControl "180+1"]
[WhiteFideId "21874697"]
[BlackFideId "13515110"]
[WhiteElo "2332"]
[BlackElo "2556"]
[WhiteTeam "POL"]
[BlackTeam "BLR"]
[WhiteClock "0:00:05"]
[BlackClock "0:00:07"]

1. e4 {[%clk 0:03:00]}  c5 {[%clk 0:03:00]} 2. Nf3 {[%clk 0:02:59]}  e6 {[%clk 0:03:00]} 3. d4 {[%clk 0:02:59]}  cxd4 {[%clk 0:03:01]} 4. Nxd4 {[%clk 0:03:00]}  Nc6 {[%clk 0:03:01]} 5. Nc3 {[%clk 0:03:00]}  Qc7 {[%clk 0:03:02]} 6. a3 {[%clk 0:03:01]}  a6 {[%clk 0:03:01]} 7. Be3 {[%clk 0:03:00]}  Nf6 {[%clk 0:03:02]} 8. f4 {[%clk 0:03:00]}  d6 {[%clk 0:03:02]} 9. Qf3 {[%clk 0:03:00]}  Bd7 {[%clk 0:03:03]} 10. O-O-O {[%clk 0:03:00]}  Rc8 {[%clk 0:03:03]} 11. Kb1 {[%clk 0:02:56]}  b5 {[%clk 0:02:59]} 12. Nxc6 {[%clk 0:02:51]}  Bxc6 {[%clk 0:02:58]} 13. g4 {[%clk 0:02:49]}  Bxe4 {[%clk 0:02:44]} 14. Nxe4 {[%clk 0:02:11]}  Qxc2+ {[%clk 0:02:42]} 15. Ka2 {[%clk 0:01:55]}  Qxe4 {[%clk 0:02:37]} 16. Qxe4 {[%clk 0:01:45]}  Nxe4 {[%clk 0:02:38]} 17. Bg2 {[%clk 0:01:45]}  d5 {[%clk 0:02:38]} 18. f5 {[%clk 0:01:26]}  Bc5 {[%clk 0:02:31]} 19. Bxe4 {[%clk 0:01:22]}  Bxe3 {[%clk 0:02:08]} 20. Bxd5 {[%clk 0:01:14]}  exf5 {[%clk 0:01:26]} 21. gxf5 {[%clk 0:01:10]}  O-O {[%clk 0:01:23]} 22. Bb7 {[%clk 0:01:07]}  Rb8 {[%clk 0:01:23]} 23. Bd5 {[%clk 0:01:01]}  Bg5 {[%clk 0:01:20]} 24. Bb3 {[%clk 0:00:57]}  a5 {[%clk 0:01:15]} 25. Rd7 {[%clk 0:00:36]}  a4 {[%clk 0:01:15]} 26. Bd5 {[%clk 0:00:37]}  b4 {[%clk 0:01:14]} 27. axb4 {[%clk 0:00:36]}  Rxb4 {[%clk 0:01:13]} 28. Re1 {[%clk 0:00:28]}  Rbb8 {[%clk 0:01:12]} 29. Bc4 {[%clk 0:00:19]}  Bf6 {[%clk 0:01:11]} 30. Re2 {[%clk 0:00:19]}  g6 {[%clk 0:00:58]} 31. fxg6 {[%clk 0:00:19]}  hxg6 {[%clk 0:00:59]} 32. Ra7 {[%clk 0:00:19]}  Rb4 {[%clk 0:00:58]} 33. Bd5 {[%clk 0:00:18]}  Kg7 {[%clk 0:00:58]} 34. Rc2 {[%clk 0:00:13]}  Rd4 {[%clk 0:00:56]} 35. Bc4 {[%clk 0:00:13]}  Rf4 {[%clk 0:00:36]} 36. Rxa4 {[%clk 0:00:13]}  Rb8 {[%clk 0:00:36]} 37. Ra7 {[%clk 0:00:10]}  Bxb2 {[%clk 0:00:30]} 38. Rxf7+ {[%clk 0:00:08]}  Rxf7 {[%clk 0:00:29]} 39. Bxf7 {[%clk 0:00:09]}  Be5 {[%clk 0:00:20]} 40. Bc4 {[%clk 0:00:09]}  Rh8 {[%clk 0:00:19]} 41. Re2 {[%clk 0:00:09]}  Bxh2 {[%clk 0:00:18]} 42. Kb3 {[%clk 0:00:09]}  Kf6 {[%clk 0:00:18]} 43. Kc3 {[%clk 0:00:09]}  Be5+ {[%clk 0:00:15]} 44. Kd3 {[%clk 0:00:10]}  Rh4 {[%clk 0:00:15]} 45. Ba2 {[%clk 0:00:08]}  g5 {[%clk 0:00:16]} 46. Ke3 {[%clk 0:00:09]}  g4 {[%clk 0:00:16]} 47. Rg2 {[%clk 0:00:08]}  Kg5 {[%clk 0:00:15]} 48. Ke4 {[%clk 0:00:08]}  Bf4 {[%clk 0:00:15]} 49. Be6 {[%clk 0:00:07]}  g3 {[%clk 0:00:15]} 50. Kf3 {[%clk 0:00:08]}  Rh6 {[%clk 0:00:15]} 51. Bd5 {[%clk 0:00:08]}  Rd6 {[%clk 0:00:15]} 52. Be4 {[%clk 0:00:08]}  Re6 {[%clk 0:00:14]} 53. Re2 {[%clk 0:00:08]}  Ra6 {[%clk 0:00:13]} 54. Kg2 {[%clk 0:00:08]}  Rh6 {[%clk 0:00:12]} 55. Kf3 {[%clk 0:00:08]}  Rh1 {[%clk 0:00:07]} 56. Bd5 {[%clk 0:00:06]}  Rd1 {[%clk 0:00:06]} 57. Be4 {[%clk 0:00:07]}  Ra1 {[%clk 0:00:06]} 58. Kg2 {[%clk 0:00:07]}  Be5 {[%clk 0:00:06]} 59. Bf3 {[%clk 0:00:07]}  Kf4 {[%clk 0:00:05]} 60. Re4+ {[%clk 0:00:07]}  Kf5 {[%clk 0:00:06]} 61. Re2 {[%clk 0:00:07]}  Bf4 {[%clk 0:00:06]} 62. Be4+ {[%clk 0:00:08]}  Kg5 {[%clk 0:00:06]} 63. Bf3 {[%clk 0:00:08]}  Ra3 {[%clk 0:00:07]} 64. Be4 {[%clk 0:00:08]}  Ra7 {[%clk 0:00:08]} 65. Kf3 {[%clk 0:00:07]}  Rf7 {[%clk 0:00:08]} 66. Kg2 {[%clk 0:00:07]}  Re7 {[%clk 0:00:09]} 67. Bf3 {[%clk 0:00:07]}  Rh7 {[%clk 0:00:09]} 68. Be4 {[%clk 0:00:08]}  Rh8 {[%clk 0:00:08]} 69. Kf3 {[%clk 0:00:07]}  Rh4 {[%clk 0:00:07]} 70. Kg2 {[%clk 0:00:07]}  Be5 {[%clk 0:00:06]} 71. Kf3 {[%clk 0:00:07]}  Kf6 {[%clk 0:00:06]} 72. Kg2 {[%clk 0:00:07]}  Rh8 {[%clk 0:00:06]} 73. Bf3 {[%clk 0:00:07]}  Rd8 {[%clk 0:00:06]} 74. Be4 {[%clk 0:00:07]}  Kg5 {[%clk 0:00:06]} 75. Bf3 {[%clk 0:00:07]}  Bf4 {[%clk 0:00:07]} 76. Be4 {[%clk 0:00:07]}  Rd1 {[%clk 0:00:07]} 77. Bf3 {[%clk 0:00:07]}  Ra1 {[%clk 0:00:08]} 78. Be4 {[%clk 0:00:07]}  Be5 {[%clk 0:00:08]} 79. Bf3 {[%clk 0:00:07]}  Kf5 {[%clk 0:00:08]} 80. Bd5 {[%clk 0:00:07]}  Ra3 {[%clk 0:00:07]} 81. Bf3 {[%clk 0:00:07]}  Kf4 {[%clk 0:00:05]} 82. Re4+ {[%clk 0:00:07]}  Kf5 {[%clk 0:00:06]} 83. Re2 {[%clk 0:00:08]}  Bd6 {[%clk 0:00:07]} 84. Bd5 {[%clk 0:00:08]}  Rc3 {[%clk 0:00:06]} 85. Bf3 {[%clk 0:00:08]}  Kf4 {[%clk 0:00:06]} 86. Re4+ {[%clk 0:00:08]}  Kf5 {[%clk 0:00:07]} 87. Re2 {[%clk 0:00:09]}  Bc5 {[%clk 0:00:07]} 88. Bd5 {[%clk 0:00:08]}  Bf2 {[%clk 0:00:07]} 89. Bf3 {[%clk 0:00:06]}  Rc1 {[%clk 0:00:07]} 90. Bd5 {[%clk 0:00:05]}  Kf4 {[%clk 0:00:08]} 91. Re4+ {[%clk 0:00:05]}  Kf5 {[%clk 0:00:08]} 92. Re2 {[%clk 0:00:06]}  Ra1 {[%clk 0:00:09]} 93. Kf3 {[%clk 0:00:06]}  Rg1 {[%clk 0:00:08]} 94. Be6+ {[%clk 0:00:04]}  Kg5 {[%clk 0:00:09]} 95. Bh3 {[%clk 0:00:05]}  Rh1 {[%clk 0:00:07]} 96. Bg2 {[%clk 0:00:05]}  Ra1 {[%clk 0:00:07]} 97. Re5+ {[%clk 0:00:05]}  Kf6 {[%clk 0:00:07]} 98. Re2 {[%clk 0:00:05]}  Ra3+ {[%clk 0:00:07]} 99. Kg4 {[%clk 0:00:05]}  Rb3 {[%clk 0:00:07]} 1/2-1/2

[Event "December 19 Late 2023"]
[Site "https://www.chess.com"]
[Date "2023.12.19"]
[Round "3"]
[White "Caruana, Fabiano"]
[Black "Adewumi, Tanitoluwa"]
[Result "1-0"]
[Board "3"]
[TimeControl "180+1"]
[WhiteFideId "2020009"]
[BlackFideId "30966396"]
[WhiteElo "2815"]
[BlackElo "2325"]
[WhiteTeam "USA"]
[BlackTeam "USA"]
[WhiteClock "0:00:27"]
[BlackClock "0:00:03"]

1. Nf3 {[%clk 0:03:00]}  Nf6 {[%clk 0:02:55]} 2. b3 {[%clk 0:03:01]}  g6 {[%clk 0:02:54]} 3. Bb2 {[%clk 0:03:01]}  Bg7 {[%clk 0:02:54]} 4. e3 {[%clk 0:03:01]}  O-O {[%clk 0:02:55]} 5. Be2 {[%clk 0:03:01]}  d6 {[%clk 0:02:55]} 6. O-O {[%clk 0:03:02]}  Nc6 {[%clk 0:02:56]} 7. c4 {[%clk 0:03:01]}  e5 {[%clk 0:02:56]} 8. d4 {[%clk 0:03:02]}  Re8 {[%clk 0:02:57]} 9. Nbd2 {[%clk 0:02:58]}  e4 {[%clk 0:02:54]} 10. Ne1 {[%clk 0:02:58]}  h5 {[%clk 0:02:55]} 11. Nc2 {[%clk 0:02:56]}  h4 {[%clk 0:02:55]} 12. h3 {[%clk 0:02:56]}  Bf5 {[%clk 0:02:54]} 13. Re1 {[%clk 0:02:56]}  Qd7 {[%clk 0:02:55]} 14. Bf1 {[%clk 0:02:57]}  Nh7 {[%clk 0:02:55]} 15. b4 {[%clk 0:02:52]}  Ng5 {[%clk 0:02:55]} 16. b5 {[%clk 0:02:53]}  Ne7 {[%clk 0:02:47]} 17. Rb1 {[%clk 0:02:52]}  Bh6 {[%clk 0:02:40]} 18. d5 {[%clk 0:02:51]}  Kh7 {[%clk 0:02:38]} 19. Nd4 {[%clk 0:02:48]}  Bg7 {[%clk 0:02:36]} 20. a4 {[%clk 0:02:40]}  Rh8 {[%clk 0:02:23]} 21. a5 {[%clk 0:02:39]}  Kg8 {[%clk 0:02:22]} 22. Nxf5 {[%clk 0:02:37]}  gxf5 {[%clk 0:02:13]} 23. Bxg7 {[%clk 0:02:35]}  Kxg7 {[%clk 0:02:14]} 24. Nb3 {[%clk 0:02:27]}  Ng6 {[%clk 0:02:14]} 25. c5 {[%clk 0:02:26]}  f4 {[%clk 0:02:12]} 26. exf4 {[%clk 0:02:22]}  Nxf4 {[%clk 0:02:12]} 27. c6 {[%clk 0:02:20]}  bxc6 {[%clk 0:02:08]} 28. dxc6 {[%clk 0:02:21]}  Qf5 {[%clk 0:01:59]} 29. Nd4 {[%clk 0:02:19]}  Qf6 {[%clk 0:01:44]} 30. Kh1 {[%clk 0:02:11]}  Rag8 {[%clk 0:01:38]} 31. b6 {[%clk 0:02:10]}  axb6 {[%clk 0:01:39]} 32. axb6 {[%clk 0:02:10]}  Kh6 {[%clk 0:01:21]} 33. Rb5 {[%clk 0:02:06]}  d5 {[%clk 0:01:19]} 34. bxc7 {[%clk 0:01:33]}  Nfxh3 {[%clk 0:00:47]} 35. gxh3 {[%clk 0:01:32]}  Qxf2 {[%clk 0:00:40]} 36. c8=Q {[%clk 0:00:43]}  Ne6 {[%clk 0:00:21]} 37. Nf5+ {[%clk 0:00:34]}  Qxf5 {[%clk 0:00:20]} 38. Rxd5 {[%clk 0:00:33]}  Qf2 {[%clk 0:00:10]} 39. Rh5+ {[%clk 0:00:30]}  Kg7 {[%clk 0:00:08]} 40. Qg4+ {[%clk 0:00:30]}  Kf6 {[%clk 0:00:07]} 41. Qcxg8 {[%clk 0:00:27]}  Rxg8 {[%clk 0:00:06]} 42. Qxh4+ {[%clk 0:00:26]}  Qxh4 {[%clk 0:00:03]} 43. Rxh4 {[%clk 0:00:27]} 1-0